Workbook

Sheet JMT
A1: JMT | B1: Pricing Schedule
A2: Services by Disciplines as per the Activity Schedule
A3: ITEM | B3: Description | C3: Unit | D3: Quantity | E3: Rate | F3: Amount
A4: 3.2.1 | B4: Project Manager - Personnel
B5: a) Construction Project Manager | C5: Hour | D5: 1000 | F5: =D5*E5 -> R0.00
A6: 3.2.4 | B6: Construction Health and Safety Agent - Personnel
B7: a) Construction Health and Safety Agent | C7: Hour | D7: 800 | F7: =D7*E7 -> R0.00
B8: Subtotal | F8: =SUM(F5:F7) -> R0.00
A10: ITEM | B10: Description | C10: Unit | D10: Quantity | E10: Rate | F10: Amount
A11: 3.2.2 | B11: Civil Engineer (Pavements) - Personnel
B12: a) Category B | C12: Hour | D12: 1000 | F12: =D12*E12 -> R0.00
B13: Subtotal | F13: =SUM(F12:F12) -> R0.00
A15: ITEM | B15: Description | C15: Unit | D15: Quantity | E15: Rate | F15: Amount
A16: 3.2.3 | B16: Quantity Surveyor - Personnel
B17: a) Principals | C17: Hour | D17: 1000 | F17: =D17*E17 -> R0.00
B18: Subtotal | F18: =SUM(F17:F17) -> R0.00
A20: ITEM | B20: Description | C20: Unit | D20: Quantity | E20: Rate | F20: Amount
B21: Provisional Sum - Additional Works
A22: 3.2.7 | B22: a) Professional Structural Engineer | C22: Prov. Sum (PS) | D22: 1 | E22: R150,000.00 | F22: =D22*E22 -> R150,000.00
A23: =A22 -> 3.2.7 | B23: b) Professional Electrical Engineer | C23: Prov. Sum (PS) | D23: 1 | E23: R100,000.00 | F23: =D23*E23 -> R100,000.00
A24: 3.3.2.1 | B24: c) Environmental Assessment Practitioner (EAP) | C24: Prov. Sum (PS) | D24: 1 | E24: R150,000.00 | F24: R150,000.00
B25: Subtotal | F25: =SUM(F22:F24) -> R400,000.00
A27: ITEM | B27: Description | C27: Unit | D27: Quantity | E27: Rate | F27: Amount
A28: 3.2.5 | B28: Construction Monitoring
B29: a) Resident Engineer - Pavements | C29: Month | D29: 6 | F29: =E29*D29 -> R0.00
B30: b) Assistant Resident Engineer - Pavements | C30: Month | D30: 6 | F30: =E30*D30 -> R0.00
B31: c) Disbursments i.r.t. 3.2.6 personnel | C31: Prov. Sum (PS) | D31: 1 | E31: R300,000.00 | F31: R300,000.00
B32: Subtotal | F32: =SUM(F29:F31) -> R300,000.00
A34: ITEM | B34: Miscellaneous | C34: Unit | D34: Quantity | E34: Rate | F34: Amount
A35: 3.2.6 | B35: =B34 -> Miscellaneous
B36: a) Airport Permits and Parking etc. | C36: Prov. Sum (PS) | D36: 1 | E36: R100,000.00 | F36: =E36*D36 -> R100,000.00
B37: b) Disbursement | C37: Prov. Sum (PS) | D37: 1 | E37: R100,000.00 | F37: =E37*D37 -> R100,000.00
B38: Subtotal | F38: =SUM(F36:F37) -> R200,000.00
A41: C2.3 | B41: Summary of Pricing Schedule
A43: 3.2.2. | B43: Main Services (Activity 1 to 6) | F43: =F8+F13+F18+F25 -> R400,000.00
A44: =A28 -> 3.2.5 | B44: =B28 -> Construction Monitoring | F44: =F32 -> R300,000.00
A45: =A35 -> 3.2.6 | B45: =B35 -> Miscellaneous | F45: =F38 -> R200,000.00
B46: Subtotal | F46: =SUM(F43:F45) -> R900,000.00
B48: Contigencies (10%) | F48: =0.1*F46 -> R90,000.00
B50: Subtotal (Excl. VAT) | F50: =F48+F46 -> R990,000.00
B52: Vat (15%) | F52: =F50*0.15 -> R148,500.00
B54: Total Amount/ Tender Sum (Carried to Form of Offer C.1.1.1) | F54: =F52+F50 -> R1,138,500.00
